Cogmind - Beta 15 @@@ ROGUE MODE // 2025.08.20 @ 21:04:21 Player: Mogwok Wargfriend Result: Destroyed by L-31 Rogue with Katana Performance ------------- Evolutions (1) 500 Regions Visited (6) 1200 Robots Destroyed (90) 450 Value Destroyed (1584) 1584 Prototype IDs (27) 540 Alien Tech Used (0) 0 Bonus (300) 300 TOTAL SCORE: 4574 Bonus ------- Aligned with FarCom 300 Cogmind --------- Core Integrity 0/400 Matter 262/300 Energy 280/280 System Corruption 0% Temperature Cool (0) Movement Rolling (155) Ox5 Location -8/Mines Parts ------- > --- POWER (1) -------- Heavy Ion Engine > --- PROPULSION (3) --- Light Treads Light Treads Wheel > --- UTILITY (3) ------ Improved Heat Sink High-capacity Storage Unit Hardened Medium Armor Plating > --- WEAPON (2) ------- Improved Assault Rifle > --- INVENTORY (20) --- Heavy Ion Engine Heat Sink High-capacity Matter Pod (200) Weapon Shielding Bomb Drone Bay (16/16) Heavy EM Pulse Gun Heavy EM Pulse Gun Improved Assault Rifle Improved Assault Rifle Improved Assault Rifle Rocket Launcher Mini Grenade Launcher Mini Grenade Launcher Mini Grenade Launcher Datajack Mining Laser Peak State ------------ > --- POWER ------------ Heavy Ion Engine > --- PROPULSION ------- Light Treads Light Treads Wheel > --- UTILITY ---------- Improved Heat Sink High-capacity Storage Unit Hardened Medium Armor Plating > --- WEAPON ----------- Medium Laser Improved Assault Rifle > --- INVENTORY -------- Heavy Ion Engine Light Treads Light Treads Wheel Heat Sink High-capacity Matter Pod Weapon Shielding Bomb Drone Bay Heavy EM Pulse Gun Heavy EM Pulse Gun Improved Assault Rifle Improved Assault Rifle Improved Assault Rifle Rocket Launcher Mini Grenade Launcher Mini Grenade Launcher Mini Grenade Launcher Datajack Mining Laser [Rating: 21] Favorites ----------- Power Heavy Ion Engine Engine Heavy Ion Engine Power Core Nuclear Core Propulsion Light Treads Treads Light Treads Leg Aluminum Leg Wheel Wheel Flight Unit Improved Flight Unit Utility High-capacity Storage Unit Device Improved Heat Sink Storage High-capacity Storage Unit Protection Core Shielding Weapon Medium Laser Energy Gun Medium Laser Ballistic Gun Assault Rifle Launcher Rocket Launcher Special Weapon Mining Laser Build | -11 -10 -10 -9 -9 -9 -8 ------- Run | Yrd Mat Min Mat Min Exi Min Slots Evolved 2 | . . . 2 . . . Power . | . . . . . . . Propulsion 1 | . . . 1 . . . Utility 1 | . . . 1 . . . Weapon . | . . . . . . . Parts Attached 43 | 7 5 5 20 2 1 3 Power 4 | 1 . 2 1 . . . Engine 2 | 1 . . 1 . . . Core 2 | . . 2 . . . . Reactor . | . . . . . . . Propulsion 18 | 2 1 2 9 1 . 3 Treads 9 | 1 . . 6 . . 2 Leg 2 | . . 2 . . . . Wheel 6 | 1 1 . 2 1 . 1 Hover . | . . . . . . . Flight 1 | . . . 1 . . . Utility 11 | 2 3 . 4 1 1 . Device 2 | 1 . . 1 . . . Storage 4 | 1 1 . 1 . 1 . Processor . | . . . . . . . Hackware . | . . . . . . . Protection 5 | . 2 . 2 1 . . Artifact . | . . . . . . . Weapon 10 | 2 1 1 6 . . . Energy Gun 2 | 1 . . 1 . . . Energy Cannon . | . . . . . . . Ballistic Gun 5 | 1 1 1 2 . . . Ballistic Cannon . | . . . . . . . Launcher 2 | . . . 2 . . . Special Weapon 1 | . . . 1 . . . Impact Weapon . | . . . . . . . Slashing Weapon . | . . . . . . . Piercing Weapon . | . . . . . . . Special Melee Weapon . | . . . . . . . Unidentified Prototypes 3 | . . . 3 . . . Parts Lost 6 | . . . 2 . . 4 Power . | . . . . . . . Propulsion 4 | . . . 1 . . 3 Utility 1 | . . . 1 . . . Weapon 1 | . . . . . . 1 Highest Loss Streak 4 | . . . 1 . . 4 To Critical Strikes . | . . . . . . . Average Backups 18 | 4 17 19 18 19 19 17 Power . | . 1 1 1 1 1 1 Propulsion 3 | 2 4 4 3 3 3 1 Utility 3 | . 3 4 4 4 4 4 Weapon 8 | 1 7 8 9 10 10 10 Tool/Special . | . . . . . . . Unused Backups 33 | 2 10 5 4 . . 12 Power 3 | . . 1 1 . . 1 Propulsion 5 | 1 2 2 . . . . Utility 7 | . 2 2 . . . 3 Weapon 17 | 1 6 . 3 . . 7 Tool/Special 1 | . . . . . . 1 Average Slot Usage (%) 99 | . 100 100 98 100 100 100 Engine 9 | . 14 . 8 11 11 11 Core 3 | . . 13 2 . . . Treads 16 | . 14 4 21 22 22 22 Leg 1 | . . 9 . . . . Wheel 12 | . 14 14 11 11 11 11 Device 7 | . 6 . 9 11 11 11 Storage 12 | . 14 14 11 11 11 11 Protection 11 | . 7 14 12 11 11 11 Energy Gun 12 | . 14 14 11 11 11 11 Ballistic Gun 11 | . 14 14 10 10 11 11 Peak Build Rating 21 | 7 9 13 19 21 21 21 Average Rating 14 | 5 8 11 17 19 21 20 On Entrance 12 | . 7 9 13 19 21 21 Naked Turns . | . . . . . . . Heaviest Build 62 | 15 50 52 58 62 62 62 Greatest Support 10 | 10 10 10 10 10 10 10 Greatest Overweight (x) 6 | 1 4 5 5 6 6 6 Average Overweight (x) 4 | . 3 4 5 5 6 6 Largest Inventory Capacity 20 | 8 20 20 20 20 20 20 Average Capacity 19 | 7 18 20 20 20 20 20 Most Carried 20 | 8 20 20 20 20 20 20 Average Carried 18 | 4 17 19 19 20 20 18 Final Capacity 20 | 8 20 20 20 20 20 20 Final Carried 20 | 8 20 20 20 20 20 17 Class Distribution -------------------- 52% | Mutant 47% | Scavenger-Mutant Dominant Class ---------------- Mutant | -10/Materials Mutant | -10/Mines Scavenger-Mutant | -9/Materials Scavenger-Mutant | -9/Mines Scavenger-Mutant | -9/Exiles Scavenger-Mutant | -8/Mines Resources | -11 -10 -10 -9 -9 -9 -8 ----------- Run | Yrd Mat Min Mat Min Exi Min Matter Collected 1749 | 361 293 155 732 208 . . Remotely . | . . . . . . . Salvage Created 2651 | 160 470 355 1405 206 . 55 Parts 172 | 13 32 23 84 14 . 6 Haulers Intercepted 5 | . 1 . 4 . . . Recyclers Shooed 3 | 1 1 1 . . . . Parts Field Recycled . | . . . . . . . Retrieved Matter . | . . . . . . . Parts Self-Destructed . | . . . . . . . Prevented . | . . . . . . . Kills | -11 -10 -10 -9 -9 -9 -8 ------- Run | Yrd Mat Min Mat Min Exi Min Combat Hostiles Destroyed 54 | . 12 3 25 10 . 4 Guns 52 | . 12 3 23 10 . 4 AOE 2 | . . . 2 . . . Classes Destroyed 12 | 3 6 1 1 1 . . Worker 11 | 2 . 2 7 . . . Builder 2 | . . 1 . 1 . . Tunneler 6 | 4 . 2 . . . . Hauler 5 | . 1 . 4 . . . Recycler 6 | 1 1 2 1 1 . . Operator 2 | . 1 . 1 . . . Watcher 8 | . 3 . 5 . . . Swarmer 22 | . 9 . 3 6 . 4 Grunt 19 | . 2 3 14 . . . Sentry 8 | . . . 8 . . . Subdweller 1 | . 1 . . . . . Assembled 4 | . . . . 4 . . Best Kill Streak 7 | 5 3 3 7 3 . 2 Combat Bots Only 7 | . 3 2 7 3 . 2 Max Kills in Single Turn 2 | 1 1 1 2 1 . 1 Gunslinging 1 | . . . 1 . . . Exploded 1 | . . . 1 . . . Melee . | . . . . . . . Uniques/NPCs Destroyed . | . . . . . . . Combat | -11 -10 -10 -9 -9 -9 -8 -------- Run | Yrd Mat Min Mat Min Exi Min Hostile Shots Fired 298 | . 31 29 147 47 . 44 Missed 85 | . 8 11 43 16 . 7 Hits 213 | . 23 18 104 31 . 37 Melee 6 | . . . . 1 . 5 Projectile 207 | . 23 18 104 30 . 32 Critical Strikes 3 | . . . 1 . . 2 Actively Blocked 1 | . . . 1 . . . Damage Taken 2450 | . 219 265 1246 282 . 438 Core 495 | . 53 30 236 96 . 80 Absorbed by Shields . | . . . . . . . Redirected to Shielding 65 | . 9 6 41 9 . . Regen/Repaired (Parts) 63 | . . . 63 . . . Core Remaining (%) 83 | 100 . 66 . . . . Volleys Fired 281 | 14 43 35 137 46 . 6 Largest 2 | 2 2 2 2 2 . 2 Hottest 100 | 70 70 70 100 100 . 73 Shots Fired 519 | 28 81 70 250 78 . 12 Gun 492 | 28 81 70 234 67 . 12 Cannon . | . . . . . . . Launcher 15 | . . . 15 . . . Special 12 | . . . 1 11 . . Kinetic 252 | 14 41 35 121 35 . 6 Thermal 252 | 14 40 35 114 43 . 6 Explosive 15 | . . . 15 . . . Electromagnetic . | . . . . . . . Robot Hit Streak 12 | 5 8 12 9 10 . 12 Robot Miss Streak 5 | 2 4 5 4 3 . 1 Penetration Max . | . . . . . . . Secondary Targets 7 | . . . 4 2 . 1 Max Gunslinging Chain 1 | . . . 1 1 . 1 Shots Hit Robots 305 | 17 44 47 147 43 . 7 Core Hits 148 | 8 25 19 77 14 . 5 Critical Kills . | . . . . . . . Critical Parts Destroyed . | . . . . . . . Critical Strikes 14 | 1 1 3 4 4 . 1 Burn 14 | 1 1 3 4 4 . 1 Melee Attacks . | . . . . . . . Impact . | . . . . . . . Slashing . | . . . . . . . Piercing . | . . . . . . . Sneak Attacks . | . . . . . . . Combat Hostiles . | . . . . . . . Follow-up Attacks . | . . . . . . . Damage Inflicted 4767 | 219 605 544 2701 602 . 96 Guns 4050 | 219 605 539 1989 602 . 96 Cannons . | . . . . . . . Explosions 712 | . . . 712 . . . Melee . | . . . . . . . Ramming 5 | . . 5 . . . . Kinetic 2092 | 82 244 261 1169 308 . 28 Thermal 1958 | 137 361 278 820 294 . 68 Explosive 712 | . . . 712 . . . Electromagnetic . | . . . . . . . Impact . | . . . . . . . Slashing . | . . . . . . . Piercing . | . . . . . . . Highest Corruption . | . . . . . . . Average Corruption . | . . . . . . . Corruption Purged . | . . . . . . . Corruption Blocked . | . . . . . . . Overload Shots . | . . . . . . . Overflow Damage 14 | . . . 14 . . . Projectiles . | . . . . . . . Explosions 14 | . . . 14 . . . Melee . | . . . . . . . Knockbacks . | . . . . . . . Impact . | . . . . . . . Kinetic . | . . . . . . . Secondary . | . . . . . . . Self-Inflicted Damage 2 | . . 2 . . . . Shots . | . . . . . . . Rammed 1 | . . 1 . . . . Targets Rammed 1 | . . 1 . . . . Kicked . | . . . . . . . Crushed . | . . . . . . . Highest Temperature 237 | 72 56 135 237 . . . Average Temperature 49 | 27 18 36 99 . . . Received Heat Transfer 702 | . 27 144 513 . . 18 Siege Activations . | . . . . . . . Martial Activations . | . . . . . . . Shielding Activations . | . . . . . . . Robots Disrupted . | . . . . . . . Combat Hostiles . | . . . . . . . Robots Corrupted . | . . . . . . . Combat Hostiles . | . . . . . . . Parts Fried . | . . . . . . . Impact Corruptions . | . . . . . . . Robots Melted . | . . . . . . . Combat Hostiles . | . . . . . . . Parts Melted 10 | 1 3 1 4 . . 1 Heat Transferred 6660 | 481 1110 1036 2627 1147 . 259 Parts Sabotaged . | . . . . . . . Parts Stolen . | . . . . . . . Parts Stripped . | . . . . . . . Power Chain Reactions . | . . . . . . . Alert | -11 -10 -10 -9 -9 -9 -8 ------- Run | Yrd Mat Min Mat Min Exi Min Maximum Alert Level 1 | . . . 1 . . . Low Security (%) 78 | 100 100 100 37 100 . 100 Level 1 21 | . . . 62 . . . Level 2 . | . . . . . . . Level 3 . | . . . . . . . Level 4 . | . . . . . . . Level 5 . | . . . . . . . High Security . | . . . . . . . Max Security . | . . . . . . . Peak Influence 323 | 20 64 60 323 191 . 30 Initial 111 | . . . . 111 . . Average 86 | 5 15 4 204 80 . 7 Influence Increases 1618 | 35 348 120 847 178 . 90 Destroy 0b10 Robot/C 980 | . 220 60 500 120 . 80 Destroy 0b10 Robot/NC 200 | 35 30 35 90 10 . . Destroy Leader 246 | . 48 10 158 20 . 10 Successful Hack 69 | . 35 . 25 9 . . Disable Machine 15 | . . 15 . . . . Destroy Structure 63 | . . . 59 4 . . Lose Combat Pursuer 45 | . 15 . 15 15 . . Influence Decreases 1598 | 35 348 120 562 463 . 70 Entered New Map 174 | . . . . 174 . . Time Decay 1364 | 35 348 120 542 289 . 30 Lost Part 60 | . . . 20 . . 40 Squads Dispatched 8 | . 2 1 5 . . . Investigation 3 | . 1 1 1 . . . Extermination . | . . . . . . . Reinforcement 5 | . 1 . 4 . . . Assault . | . . . . . . . Garrison . | . . . . . . . Intercept . | . . . . . . . Searches Triggered . | . . . . . . . Construction Impeded 1 | . . . 1 . . . Haulers Reinforced . | . . . . . . . Active Scanning Responses . | . . . . . . . Cargo Convoy Interrupts . | . . . . . . . Stealth | -11 -10 -10 -9 -9 -9 -8 --------- Run | Yrd Mat Min Mat Min Exi Min Distress Signals 6 | . 1 . 4 1 . . Communications Jammed . | . . . . . . . Distress Signals . | . . . . . . . Times Spotted 91 | . 20 7 44 13 . 7 Peak Tracking Total 7 | . 3 2 6 4 . 7 Tactical Retreats 8 | . 3 . 1 4 . . Traps | -11 -10 -10 -9 -9 -9 -8 ------- Run | Yrd Mat Min Mat Min Exi Min Traps Triggered 3 | . 2 . 1 . . . Indirectly . | . . . . . . . Trap Hack Attempts . | . . . . . . . Triggered . | . . . . . . . Disarmed . | . . . . . . . Reprogrammed . | . . . . . . . Reused . | . . . . . . . Traps Extracted . | . . . . . . . Installed . | . . . . . . . Triggered . | . . . . . . . Machines | -11 -10 -10 -9 -9 -9 -8 ---------- Run | Yrd Mat Min Mat Min Exi Min Machines Disabled 3 | . . 1 2 . . . Max in Single Turn 2 | . . 1 2 . . . Machines Repaired . | . . . . . . . Machines Dismantled . | . . . . . . . Machines Sabotaged . | . . . . . . . Overloaded Fab Kills . | . . . . . . . Hacking | -11 -10 -10 -9 -9 -9 -8 --------- Run | Yrd Mat Min Mat Min Exi Min Machines Accessed 22 | . 9 2 8 2 1 . Terminals 13 | . 7 . 4 2 . . Fabricators . | . . . . . . . Repair Stations 1 | . . . 1 . . . Recycling Units 3 | . 2 . 1 . . . Scanalyzers 2 | . . . 2 . . . Garrison Access . | . . . . . . . Total Hacks 79 | . 30 2 38 8 1 . Successful 47 | . 15 2 25 4 1 . Failed 31 | . 14 . 13 4 . . Catastrophic 4 | . 1 . 2 1 . . Database Lockouts 1 | . 1 . . . . . Manual 47 | . 25 . 18 3 1 . Terminals 44 | . 23 . 13 8 . . Fabricators . | . . . . . . . Repair Stations 5 | . . . 5 . . . Recycling Units 10 | . 7 . 3 . . . Scanalyzers 17 | . . . 17 . . . Garrison Access . | . . . . . . . Terminal Hacks 13 | . 5 2 2 3 1 . Record 3 | . 1 . . 2 . . Robot Analysis 5 | . 3 . 2 . . . Open Door 2 | . . 2 . . . . Terminal Index 1 | . 1 . . . . . Zone Layout 1 | . . . . 1 . . Proto ID Catalog 1 | . . . . . 1 . Fabricator Hacks . | . . . . . . . Repair Station Hacks 2 | . . . 2 . . . Scan Component 1 | . . . 1 . . . Repair 1 | . . . 1 . . . Recycling Unit Hacks 2 | . 2 . . . . . Report Inventory 2 | . 2 . . . . . Scanalyzer 15 | . . . 15 . . . Insert Component 8 | . . . 8 . . . Analyze 7 | . . . 7 . . . Garrison Access Hacks . | . . . . . . . Unauthorized Hacks 14 | . 8 . 5 1 . . Terminals 10 | . 5 . 4 1 . . Botnet 8 | . 4 . 3 1 . . Operators 2 | . 1 . 1 . . . Fabricators . | . . . . . . . Repair Stations . | . . . . . . . Recycling Units 4 | . 3 . 1 . . . Monitor 1 | . 1 . . . . . Reject 3 | . 2 . 1 . . . Scanalyzers . | . . . . . . . Garrison Access . | . . . . . . . Data Cores Recovered . | . . . . . . . Used . | . . . . . . . Hacking Detections 18 | . 8 . 8 2 . . Full Trace Events . | . . . . . . . Feedback Events . | . . . . . . . Feedback Blocked . | . . . . . . . Robot Schematics Acquired . | . . . . . . . Robots Built . | . . . . . . . Authchips . | . . . . . . . Time . | . . . . . . . Total Robot Build Rating . | . . . . . . . Part Schematics Acquired 6 | . . . 6 . . . Parts Built . | . . . . . . . Authchips . | . . . . . . . Time . | . . . . . . . Total Part Build Rating . | . . . . . . . Parts Repaired 1 | . . . 1 . . . Time 25 | . . . 25 . . . Parts Recycled . | . . . . . . . Recycled Matter . | . . . . . . . Retrieved Matter . | . . . . . . . Retrieved Components . | . . . . . . . Parts Scanalyzed 6 | . . . 6 . . . Part Schematics Acquired 6 | . . . 6 . . . Parts Damaged . | . . . . . . . Bothacking | -11 -10 -10 -9 -9 -9 -8 ------------ Run | Yrd Mat Min Mat Min Exi Min Used RIF Installer . | . . . . . . . Robots Hacked . | . . . . . . . Non-combat . | . . . . . . . Combat . | . . . . . . . Robot Hacks Applied . | . . . . . . . Relay Couplers Released . | . . . . . . . Fabnet Peak Effective % . | . . . . . . . Robots Rewired . | . . . . . . . Allies Hacked . | . . . . . . . Hacks Repelled . | . . . . . . . Allies | -11 -10 -10 -9 -9 -9 -8 -------- Run | Yrd Mat Min Mat Min Exi Min Total Allies . | . . . . . . . Largest Group . | . . . . . . . Highest-Rated Group . | . . . . . . . Highest-Rated Ally . | . . . . . . . Total Orders . | . . . . . . . Ally Attacks . | . . . . . . . Total Damage . | . . . . . . . Kills . | . . . . . . . Allies Corrupted . | . . . . . . . Allies Melted . | . . . . . . . Intel | -11 -10 -10 -9 -9 -9 -8 ------- Run | Yrd Mat Min Mat Min Exi Min Active Infowar (turns) 735 | 31 704 . . . . . Seismic 735 | 31 704 . . . . . Robot Analysis Total 5 | . 3 . 2 . . . Derelict Logs Recovered 2 | . . 1 . 1 . . Drone Launches . | . . . . . . . Drone Recoveries . | . . . . . . . Exploration | -11 -10 -10 -9 -9 -9 -8 ------------- Run | Yrd Mat Min Mat Min Exi Min Turns Passed 6201 | 126 1510 1122 1864 858 656 65 Spaces Moved 3318 | 71 869 676 853 437 386 26 Core 7 | 7 . . . . . . Treads . | . . . . . . . Legs . | . . . . . . . Wheels 3311 | 64 869 676 853 437 386 26 Hover . | . . . . . . . Flight . | . . . . . . . Fastest Speed 50 | 50 95 140 155 155 170 170 Average Speed 148 | 88 134 145 155 158 170 170 Slowest Speed 170 | 95 140 155 155 170 170 170 Overloaded Moves . | . . . . . . . Propulsion Burnouts . | . . . . . . . Robots Hopped . | . . . . . . . Potential Cave-ins . | . . . . . . . Cave-ins Triggered . | . . . . . . . Exploration Rate (%) 56 | 3 92 96 56 67 71 11 Regions Visited 6 Branch Regions 4 Pre-discovered Areas 2 | . . 1 . 1 . . Known Exits Taken . | . . . . . . . Unknown Exits Taken 6 | 1 1 1 1 1 1 . Scrap Searched 3 | . . 1 . 2 . . Spaces Dug 3 | . . . 1 2 . . Terrain Destroyed 72 | . . . 63 9 . . Melee . | . . . . . . . Projectile 10 | . . . 1 9 . . AOE 62 | . . . 62 . . . Terrain Rammed . | . . . . . . . Walls Destroyed . | . . . . . . . Machines Disabled . | . . . . . . . Actions | -11 -10 -10 -9 -9 -9 -8 --------- Run | Yrd Mat Min Mat Min Exi Min Total 4064 | 104 1138 752 1149 499 387 35 Wait 317 | . 181 21 105 10 . . Move 3312 | 70 868 675 852 436 385 26 Hop . | . . . . . . . Pick Up 49 | 11 23 5 10 . . . Fast Attach 17 | 6 3 1 7 . . . Attach 13 | 1 2 1 6 . . 3 Detach 3 | . 2 . 1 . . . Swap 25 | . 2 3 13 6 1 . Drop 46 | 2 14 10 18 1 1 . Fire 281 | 14 43 35 137 46 . 6 Melee . | . . . . . . . Ram 1 | . . 1 . . . . Kick . | . . . . . . . Crush . | . . . . . . . Escape Stasis . | . . . . . . . Rewire . | . . . . . . . Trap . | . . . . . . . Miscellaneous . | . . . . . . . Route ------- -11/Scrapyard -10/Materials (discovered 4 exits: *Mat x2 / *Min x2) -10/Mines (discovered 3 exits: *Mat x2 / [*Sub]) -9/Materials (discovered 2 exits: [*Mat] / *Min) -9/Mines -9/Exiles -8/Mines History --------- Turn | Location | Event 5 | -11/Scrapyard | Discovered new exit (range 16) 127 | -11/Scrapyard | Entered Materials 217 | -10/Materials | Discovered new exit (range 15) 314 | -10/Materials | Build established: Mutant 460 | -10/Materials | Central database locked down 616 | -10/Materials | Discovered new exit (range 5) 622 | -10/Materials | Discovered new exit (range 16) 827 | -10/Materials | Derelicts attacked the area 1443 | -10/Materials | Discovered new exit (range 15) 1637 | -10/Materials | Entered Mines 1650 | -10/Mines | Met a Derelict bent on vengeance 2147 | -10/Mines | Found the Drone Emporium 2153 | -10/Mines | Found Prototype Device 2178 | -10/Mines | Discovered new exit (range 8) 2228 | -10/Mines | Learned location of Recycling (-7) 2355 | -10/Mines | Met a Derelict shopkeep closing up shop 2431 | -10/Mines | Discovered new exit (range 13) 2729 | -10/Mines | Discovered new exit (range 14) 2759 | -10/Mines | Entered Materials 2759 | -9/Materials | Evolved 2 slots: Propulsion x1, Utility x1 3061 | -9/Materials | Destroyed 7 combat bots 3166 | -9/Materials | Identified Bomb Drone Bay 3447 | -9/Materials | Discovered new exit (range 8) 3701 | -9/Materials | Build established: Scavenger-Mutant 4006 | -9/Materials | Core integrity fell below 50% 4215 | -9/Materials | Discovered new exit (range 16) 4531 | -9/Materials | Repaired Hvy. Ion Engine 4623 | -9/Materials | Entered Mines 4652 | -9/Mines | Learned location of Zion (-6) 4750 | -9/Mines | Assembled infested the area 5276 | -9/Mines | Core integrity fell below 20% 5474 | -9/Mines | Deemed a non-threat by the Exiles lab entrance 5474 | -9/Mines | Discovered new exit (range 5) 5481 | -9/Mines | Entered Exiles 5526 | -9/Exiles | Met 8R-AWN 5556 | -9/Exiles | Met EX-HEX 5600 | -9/Exiles | Met EX-BIN 5645 | -9/Exiles | Aligned with FarCom system 5646 | -9/Exiles | Given EX-Vault access code 5685 | -9/Exiles | Opened EX-Vault 5759 | -9/Exiles | Warned to stay clear of 0b10 Research branches 5810 | -9/Exiles | Met EX-DEC 5874 | -9/Exiles | Discovered new exit (range 14) 6137 | -9/Exiles | Entered Mines 6202 | -8/Mines | Destroyed by L-31 Rogue with Katana Last Messages --------------- 06145_ C-30 ARC bursts open, deploying its payload. 06145_ S-10 Pest unfolds itself. 06151_ Critical hit (Destroy). 06156_ S-10 Pest destroyed. 06160_ Lgt. Treads destroyed. 06173_ Flight Unit melted. 06173_ S-10 Pest destroyed. 06173_ Switching to secondary target: G-47 Trooper. 06175_ Lgt. Treads destroyed. 06176_ Wheel destroyed. 06189_ T-07 Excavator is excavating. 06194_ S-10 Pest suffers critical hit (Burn). 06194_ S-10 Pest destroyed. 06194_ T-07 Excavator is excavating. 06197_ S-10 Pest destroyed. 06198_ T-07 Excavator is excavating. 06200_ Med. Laser destroyed. 06202_ T-07 Excavator is excavating. Map ----- +----------------------------------------------------+ | ?????????????????????????????????????????????????? | | ?????????????????????????????????????????????????? | | ?????????????????????????????????????????????????? | | ?????????????????????????????????????????????????? | | ?????????????????????????????????????????????????? | | ?????????????????????????????????????????????????? | | ?????????????????????????????????????????????????? | | ?????????????????????????????????????????????????? | | ?????????????????????????????????????????????????? | | ?????????????????????????????????????????????????? | | ?????????????????????????????????????????????????? | | ?????????????????????????????????????????????????? | | ?????????????????????????????????????????????????? | | ?????????????????????????????????????????????????? | | ?????????????????????????????????????????????????? | | ?????????????????????????????????????????????????? | | ?????????????????????????????????????????????????? | | ?????????????????????????????????????????????????? | | ?????????????????????????????????????????????????? | | ?????????????????????????????????????????????????? | | ?????????????????????????????????????????????????? | | ?????????????????????????????????????????????????? | | ??????????????????????##?????????????????????????? | | ?????????????????????## #????????????????????????? | | ?????????????????????# #####???????????????????? | | ?????????????????????# t[@lg=#????###????????????? | | ?????????????????????# # ###g#????"%"????????????? | | ???????????????????????##??# #????#"#????????????? | | ???????????????????????????# #????# #????????????? | | ???????????????????????????# #????# #????????????? | | ???????????????????????????# #????# #????????????? | | ???????????????????????????# #????# #????????????? | | ???????????????????????????# #?#### ######???????? | | ??????????????????????????##%#?# #???????? | | ?????????????????????????## #?# """ #???????? | | ?????????????????????????# ###%""" #???????? | | ?????????????????????????# ="" #???????? | | ?????????????????????????# #???????? | | ????????????????????????# # # #???????? | | ???????????????????????# ## # #???????? | | ????????????????????? #?# # #???????? | | ??????????????????? #??# ###########???????? | | ??????????????????## ???# #?????????????????? | | ???????????????????## ???# #?????????????????? | | ????????????????????# #???# #?????????????????? | | ????????????????????# ????? ??????????????????? | | ????????????????????# ????? ??????????????????? | | ????????????????????## ?????? ??????????????????? | | ?????????????????????##??????? ??????????????????? | | ?????????????????????????????? ??????????????????? | +----------------------------------------------------+ Best States ------------- Heat Dissipation 42 Energy Generation 14 Energy Capacity 280 Matter Stores 300 Matter Capacity 300 Sight Range 16 Terrain Scan Density 10 Armor Coverage 225 Core Shielding 20 Weapon Shielding 33 Evasion (%) 44 Item Schematics ----------------- Weapon Shielding | -9/Materials | Scanalyzed Mining Laser | -9/Materials | Scanalyzed Mni. Grenade Launcher | -9/Materials | Scanalyzed Hvy. EM Pulse Gun | -9/Materials | Scanalyzed Imp. Assault Rifle | -9/Materials | Scanalyzed Rocket Launcher | -9/Materials | Scanalyzed Robot Schematics ------------------ None Fabricated ------------ Nothing Repaired ---------- Hvy. Ion Engine | 42% | -9/Materials Alien Tech Used ----------------- None Achievements -------------- None Challenges ------------ None Game ------ Seed HackingCloakNukerbomber Manual? 1 Play Time 00:36:40 Cumulative 326.6 hours Start 2025.08.20 @ 20:19:52 End 2025.08.20 @ 21:04:21 Sessions 1 Manual Loads 0 Difficulty Rogue Special Mode None Game No. 284 Rogue 284 Adventurer 0 Explorer 0 Win Type - Total 2 Types 2/0/0/0/0/0/0/0/0/0 Lore% 73 Gallery% 66 Achievement% 53 Wizard Run 0 Options --------- Layout 2 ASCII 1 Keyboard 1 Movement Numpad Keybinds 0 Fullscreen 2 Font 32/TamsynBold Map View 50x44 Zoom Use 0% Tactical HUD 1 Map Filters NONE Filters NONE Steam 1 RUN: 5b801e9c-1632-46ac-8fdb-22050f138ea8